fUST/lending_fUST_20250811
["ID","MTS","AMOUNT","RATE_DAILY","PERIOD"]
[378539523,1754908245187,-460.0,0.00020641,2]
[378539524,1754908245197,-460.0,0.00020641,2]
[378539525,1754908245207,-460.0,0.00020641,2]
[378539526,1754908245218,-460.0,0.00020641,2]
[378539527,1754908245227,-460.0,0.00020641,2]
[378539528,1754908245237,-460.0,0.00020641,2]
[378539529,1754908245246,-1663.64,0.00020641,2]
[378539530,1754908245256,-1663.64,0.00020641,2]
[378539531,1754908245265,-1663.64,0.00020641,2]
[378539532,1754908245275,-500.0,0.00020641,2]
[378539533,1754908245284,-1663.64,0.00020641,2]
[378539534,1754908245294,-500.0,0.00020641,2]
[378539535,1754908245304,-460.0,0.00020641,2]
[378539536,1754908245316,-500.0,0.00020641,2]
[378539537,1754908245325,-500.0,0.00020641,2]
[378539538,1754908245335,-460.0,0.00020641,2]
[378539539,1754908245345,-460.0,0.00020641,2]
[378539540,1754908245355,-460.0,0.00020641,2]
[378539541,1754908245365,-460.0,0.00020641,2]
[378539542,1754908245374,-460.0,0.00020641,2]
[378539543,1754908245385,-462.66000694,0.00020641,2]
[378539544,1754908245395,-460.0,0.00020641,2]
[378539545,1754908245405,-460.0,0.00020641,2]
[378539546,1754908245414,-460.0,0.00020641,2]
[378539547,1754908245424,-460.0,0.00020641,2]
[378539548,1754908245433,-625.55,0.00020641,2]
[378539549,1754908245444,-460.0,0.00020641,2]
[378539550,1754908245453,-460.0,0.00020641,2]
[378539551,1754908245463,-460.0,0.00020641,2]
[378539552,1754908245472,-460.0,0.00020641,2]
[378539554,1754908245482,-1343.95,0.00020641,2]
[378539555,1754908245491,-460.0,0.00020641,2]
[378539556,1754908245500,-898.78,0.00020641,2]
[378539557,1754908245510,-460.0,0.00020641,2]
[378539558,1754908245520,-460.0,0.00020641,2]
[378539559,1754908245529,-460.0,0.00020641,2]
[378539560,1754908245539,-1255.29,0.00020641,2]
[378539561,1754908245549,-460.0,0.00020641,2]
[378539562,1754908245558,-460.0,0.00020641,2]
[378539563,1754908245568,-1066.45,0.00020641,2]
[378539564,1754908245579,-460.0,0.00020641,2]
[378539565,1754908245589,-528.69,0.00020641,2]
[378539566,1754908245599,-460.0,0.00020641,2]
[378539567,1754908245609,-463.75594446,0.00020641,2]
[378539568,1754908245619,-283.35434738,0.00020641,2]
[378539569,1754908245629,-462.09393988,0.00020641,2]
[378539570,1754908245639,-460.0,0.00020641,2]
[378539571,1754908245650,-460.0,0.00020641,2]
[378539572,1754908245660,-460.0,0.00020641,2]
[378539573,1754908245670,-460.0,0.00020641,2]
[378539574,1754908245681,-460.0,0.00020641,2]
[378539575,1754908245691,-460.0,0.00020641,2]
[378539576,1754908245702,-460.0,0.00020641,2]
[378539577,1754908245712,-460.0,0.00020641,2]
[378539578,1754908245721,-460.0,0.00020641,2]
[378539579,1754908245731,-460.0,0.00020641,2]
[378539580,1754908245741,-771.15,0.00020641,2]
[378539581,1754908245751,-460.0,0.00020641,2]
[378539582,1754908245761,-2043.63,0.00020641,2]
[378539583,1754908245770,-460.0,0.00020641,2]
[378539584,1754908245780,-460.0,0.00020641,2]
[378539585,1754908245790,-460.0,0.00020641,2]
[378539587,1754908245800,-1204.15,0.00020641,2]
[378539589,1754908245809,-460.0,0.00020641,2]
[378539591,1754908245819,-460.0,0.00020641,2]
[378539593,1754908245828,-460.0,0.00020641,2]
[378539595,1754908245838,-460.0,0.00020641,2]
[378539597,1754908245848,-460.0,0.00020641,2]
[378539599,1754908245858,-460.0,0.00020641,2]
[378539601,1754908245867,-460.0,0.00020641,2]
[378539603,1754908245877,-460.0,0.00020641,2]
[378539605,1754908245888,-460.0,0.00020641,2]
[378539607,1754908245898,-460.0,0.00020641,2]
[378539609,1754908245907,-460.0,0.00020641,2]
[378539611,1754908245917,-460.0,0.00020641,2]
[378539613,1754908245928,-460.0,0.00020641,2]
[378539614,1754908245937,-460.0,0.00020641,2]
[378539617,1754908245948,-460.0,0.00020641,2]
[378539619,1754908245958,-577.12996841,0.00020641,2]
[378539620,1754908245968,-461.83296421,0.00020641,2]
[378539621,1754908245980,-460.0,0.00020641,2]
[378539622,1754908245991,-460.0,0.00020641,2]
[378539623,1754908246001,-460.0,0.00020641,2]
[378539624,1754908246011,-336.43040096,0.00020641,2]
[378539626,1754908246020,-460.0,0.00020641,2]
[378539628,1754908246030,-500.71,0.00020641,2]
[378539630,1754908246040,-460.0,0.00020641,2]
[378539632,1754908246049,-460.0,0.00020641,2]
[378539634,1754908246059,-460.0,0.00020641,2]
[378539635,1754908246069,-460.0,0.00020641,2]
[378539636,1754908246079,-3394.36,0.00020641,2]
[378539637,1754908246089,-460.0,0.00020641,2]
[378539638,1754908246099,-460.0,0.00020641,2]
[378539639,1754908246109,-460.0,0.00020641,2]
[378539640,1754908246119,-460.0,0.00020641,2]
[378539641,1754908246129,-460.0,0.00020641,2]
[378539642,1754908246139,-401.60406388,0.00020641,2]
[378539643,1754908246149,-460.84126169,0.00020641,2]
[378539644,1754908246158,-795.91,0.00020641,2]
[378539645,1754908246168,-460.0,0.00020641,2]
[378539646,1754908246177,-206.81897083,0.00020641,2]
[378539647,1754908246187,-460.0,0.00020641,2]
[378539648,1754908246199,-460.0,0.00020641,2]
[378539649,1754908246209,-460.0,0.00020641,2]
[378539650,1754908246220,-460.0,0.00020641,2]
[378539651,1754908246230,-460.0,0.00020641,2]
[378539652,1754908246239,-460.0,0.00020641,2]
[378539653,1754908246249,-460.0,0.00020641,2]
[378539654,1754908246258,-460.0,0.00020641,2]
[378539655,1754908246269,-971.31,0.00020641,2]
[378539656,1754908246279,-460.0,0.00020641,2]
[378539657,1754908246288,-556.06461915,0.00020641,2]
[378539658,1754908246298,-239.8950101,0.00020641,2]
[378539659,1754908246307,-988.42,0.00020641,2]
[378539660,1754908246321,-507.94999836,0.00020641,2]
[378539661,1754908246331,-368.51208744,0.00020641,2]
[378539662,1754908246340,-460.0,0.00020641,2]
[378539663,1754908246350,-460.0,0.00020641,2]
[378539664,1754908246360,-500.0,0.00020641,2]
[378539665,1754908246369,-500.0,0.00020641,2]
[378539666,1754908246379,-500.0,0.00020641,2]
[378539667,1754908246391,-500.0,0.00020641,2]
[378539668,1754908246401,-460.0,0.00020641,2]
[378539669,1754908246410,-460.0,0.00020641,2]
[378539670,1754908246420,-460.0,0.00020641,2]
[378539671,1754908246429,-601.41,0.00020641,2]
[378539672,1754908246438,-460.0,0.00020641,2]
[378539673,1754908246449,-508.35296366,0.00020641,2]
[378539674,1754908246459,-713.32,0.00020641,2]
[378539675,1754908246468,-460.0,0.00020641,2]
[378539676,1754908246478,-460.0,0.00020641,2]
[378539677,1754908246487,-460.0,0.00020641,2]
[378539678,1754908246498,-460.0,0.00020641,2]
[378539679,1754908246507,-736.45,0.00020641,2]
[378539680,1754908246517,-462.38926379,0.00020641,2]
[378539681,1754908246527,-460.0,0.00020641,2]
[378539682,1754908246536,-1663.64,0.00020642,2]
[378539683,1754908246545,-1663.64,0.00020642,2]
[378539684,1754908246555,-1663.64,0.00020642,2]
[378539685,1754908246564,-1663.64,0.00020642,2]
[378539686,1754908246573,-1663.64,0.00020642,2]
[378539687,1754908246583,-500.0,0.00020642,2]
[378539688,1754908246594,-1663.64,0.00020642,2]
[378539689,1754908246604,-500.0,0.00020642,2]
[378539690,1754908246614,-1663.64,0.00020642,2]
[378539691,1754908246624,-500.0,0.00020642,2]
[378539692,1754908246634,-1663.64,0.00020642,2]
[378539693,1754908246643,-500.0,0.00020642,2]
[378539694,1754908246653,-1663.64,0.00020642,2]
[378539695,1754908246663,-500.0,0.00020642,2]
[378539696,1754908246683,-1663.64,0.00020642,2]
[378539697,1754908246704,-500.0,0.00020642,2]
[378539698,1754908246718,-1663.64,0.00020642,2]
[378539699,1754908246728,-500.0,0.00020642,2]
[378539700,1754908246738,-1663.64,0.00020642,2]
[378539701,1754908246747,-500.0,0.00020642,2]
[378539702,1754908246756,-1663.64,0.00020642,2]
[378539703,1754908246766,-1663.64,0.00020642,2]
[378539704,1754908246775,-500.0,0.00020642,2]
[378539705,1754908246784,-1663.64,0.00020642,2]
[378539706,1754908246794,-1663.64,0.00020642,2]
[378539707,1754908246804,-1663.64,0.00020642,2]
[378539708,1754908246814,-500.0,0.00020642,2]
[378539709,1754908246824,-1663.64,0.00020642,2]
[378539710,1754908246833,-452.95096965,0.00020642,2]
[378539711,1754908246842,-1663.87808819,0.00020642,2]
[378539712,1754908246855,-500.0,0.00020642,2]
[378539713,1754908246865,-151.04937474,0.00020642,2]
[378539714,1754908246874,-370000.0,0.00020642,2]
[378539715,1754908246884,-879.64498041,0.00020648,2]
[378539716,1754908246894,-1000.0,0.00020648,2]
[378539717,1754908246904,-1006.31177461,0.00020648,2]
[378539718,1754908246915,-1000.0,0.00020648,2]
[378539719,1754908246925,-1000.0,0.00020648,2]
[378539720,1754908246935,-1000.0,0.00020648,2]
[378539721,1754908246946,-1000.0,0.00020648,2]
[378539722,1754908246956,-1018.70284719,0.00020648,2]
[378539723,1754908246966,-1000.0,0.00020648,2]
[378539724,1754908246977,-1000.0,0.00020648,2]
[378539725,1754908246987,-1000.0,0.00020648,2]
[378539726,1754908246997,-507.94843346,0.00020648,2]
[378539727,1754908247006,-1000.0,0.00020648,2]
[378539728,1754908247016,-2846.54306434,0.00020668,2]
[378539729,1754908247026,-500.0,0.00020673,2]
[378539730,1754908247036,-500.0,0.00020673,2]
[378539731,1754908247047,-500.0,0.00020673,2]
[378539732,1754908247057,-248.07351204,0.00020673,2]
[378539733,1754908247067,-510.97540017,0.00020673,2]
[378539734,1754908247077,-500.0,0.00020673,2]
[378539735,1754908247087,-500.0,0.00020673,2]
[378539736,1754908247097,-500.0,0.00020673,2]
[378539737,1754908247107,-500.0,0.00020673,2]
[378539738,1754908247116,-500.0,0.00020673,2]
[378539739,1754908247126,-500.0,0.00020673,2]
[378539740,1754908247135,-406.0,0.00020683,2]
[378539741,1754908247145,-151.0,0.000207,3]
[378539742,1754908247155,-81323.37375279,0.00020728,2]
[378539743,1754908247164,-460.0,0.0002073,2]
[378539744,1754908247173,-460.0,0.0002073,2]
[378539745,1754908247183,-460.0,0.0002073,2]
[378539746,1754908247192,-460.0,0.0002073,2]
[378539747,1754908247205,-460.0,0.0002073,2]
[378539748,1754908247215,-964.35,0.0002073,2]
[378539749,1754908247225,-460.0,0.0002073,2]
[378539750,1754908247235,-460.0,0.0002073,2]
[378539751,1754908247245,-460.0,0.0002073,2]
[378539752,1754908247255,-460.0,0.0002073,2]
[378539753,1754908247264,-460.0,0.0002073,2]
[378539754,1754908247274,-460.0,0.0002073,2]
[378539755,1754908247284,-460.0,0.0002073,2]
[378539756,1754908247294,-460.0,0.0002073,2]
[378539757,1754908247303,-460.0,0.0002073,2]
[378539758,1754908247316,-460.0,0.0002073,2]
[378539759,1754908247325,-460.0,0.0002073,2]
[378539760,1754908247336,-460.0,0.0002073,2]
[378539761,1754908247345,-460.0,0.0002073,2]
[378539762,1754908247355,-460.0,0.0002073,2]
[378539763,1754908247365,-940.53,0.0002073,2]
[378539764,1754908247375,-460.0,0.0002073,2]
[378539765,1754908247385,-500.0,0.0002073,2]
[378539766,1754908247395,-500.0,0.0002073,2]
[378539767,1754908247406,-460.0,0.0002073,2]
[378539768,1754908247416,-460.0,0.0002073,2]
[378539769,1754908247425,-460.0,0.0002073,2]
[378539770,1754908247435,-460.0,0.0002073,2]
[378539771,1754908247447,-460.54895777,0.0002073,2]
[378539772,1754908247457,-460.0,0.0002073,2]
[378539773,1754908247467,-1026.17,0.0002073,2]
[378539774,1754908247627,-460.0,0.0002073,2]
[378539775,1754908247637,-460.0,0.0002073,2]
[378539776,1754908247646,-500.0,0.0002073,2]
[378539777,1754908247655,-460.0,0.0002073,2]
[378539778,1754908247665,-460.0,0.0002073,2]
[378539779,1754908247674,-460.0,0.0002073,2]
[378539780,1754908247684,-460.0,0.0002073,2]
[378539781,1754908247694,-460.0,0.0002073,2]
[378539782,1754908247704,-460.0,0.0002073,2]
[378539783,1754908247713,-460.0,0.0002073,2]
[378539784,1754908247723,-460.0,0.0002073,2]
[378539785,1754908247732,-862.5,0.0002073,2]
[378539786,1754908247741,-460.0,0.0002073,2]
[378539787,1754908247750,-460.0,0.0002073,2]
[378539788,1754908247759,-460.0,0.0002073,2]
[378539789,1754908247768,-460.0,0.0002073,2]
[378539790,1754908247777,-460.0,0.0002073,2]
[378539791,1754908247786,-506.33,0.0002073,2]
[378539792,1754908247796,-460.0,0.0002073,2]
[378539793,1754908247805,-460.0,0.0002073,2]
[378539794,1754908247815,-460.0,0.0002073,2]
[378539795,1754908247824,-460.0,0.0002073,2]
[378539796,1754908247833,-460.0,0.0002073,2]
[378539797,1754908247843,-460.0,0.0002073,2]
[378539798,1754908247852,-460.0,0.0002073,2]
[378539799,1754908247861,-460.0,0.0002073,2]
[378539800,1754908247870,-460.0,0.0002073,2]
[378539801,1754908247880,-541.67,0.0002073,2]
[378539802,1754908247888,-460.0,0.0002073,2]
[378539803,1754908247898,-460.0,0.0002073,2]
[378539804,1754908247908,-460.0,0.0002073,2]
[378539805,1754908247917,-460.0,0.0002073,2]
[378539806,1754908247926,-460.0,0.0002073,2]
[378539807,1754908247936,-460.0,0.0002073,2]
[378539808,1754908247945,-460.0,0.0002073,2]
[378539809,1754908247954,-460.0,0.0002073,2]
[378539810,1754908247965,-460.0,0.0002073,2]
[378539811,1754908247974,-460.0,0.0002073,2]
[378539812,1754908247984,-460.0,0.0002073,2]
[378539813,1754908247993,-460.0,0.0002073,2]
[378539814,1754908248003,-599.36,0.0002073,2]
[378539815,1754908248012,-460.0,0.0002073,2]
[378539816,1754908248022,-460.0,0.0002073,2]
[378539817,1754908248032,-460.0,0.0002073,2]
[378539818,1754908248042,-460.0,0.0002073,2]
[378539819,1754908248052,-237.2272923,0.0002073,2]
[378539820,1754908248064,-460.0,0.0002073,2]
[378539821,1754908248076,-460.0,0.0002073,2]
[378539822,1754908248086,-460.0,0.0002073,2]
[378539823,1754908248097,-356.50985516,0.0002073,2]
[378539824,1754908248107,-460.0,0.0002073,2]
[378539825,1754908248119,-460.0,0.0002073,2]
[378539826,1754908248131,-460.0,0.0002073,2]
[378539827,1754908248142,-567.57,0.0002073,2]
[378539828,1754908248152,-405.57055457,0.0002073,2]
[378539829,1754908248162,-460.0,0.0002073,2]
[378539830,1754908248172,-853.0,0.0002073,2]
[378539831,1754908248182,-460.0,0.0002073,2]
[378539832,1754908248193,-460.0,0.0002073,2]
[378539833,1754908248204,-460.0,0.0002073,2]
[378539834,1754908248213,-460.0,0.0002073,2]
[378539835,1754908248223,-1715.38,0.0002073,2]
[378539836,1754908248232,-460.0,0.0002073,2]
[378539837,1754908248242,-460.0,0.0002073,2]
[378539838,1754908248252,-460.0,0.0002073,2]
[378539839,1754908248261,-460.0,0.0002073,2]
[378539840,1754908248271,-460.0,0.0002073,2]
[378539841,1754908248280,-460.0,0.0002073,2]
[378539842,1754908248289,-460.0,0.0002073,2]
[378539843,1754908248299,-460.0,0.0002073,2]
[378539844,1754908248308,-460.0,0.0002073,2]
[378539845,1754908248320,-460.0,0.0002073,2]
[378539846,1754908248329,-460.0,0.0002073,2]
[378539847,1754908248339,-460.55384015,0.0002073,2]
[378539848,1754908248349,-381.27961022,0.0002073,2]
[378539849,1754908248360,-460.0,0.0002073,2]
[378539850,1754908248369,-460.0,0.0002073,2]
[378539851,1754908248378,-460.0,0.0002073,2]
[378539852,1754908248388,-460.0,0.0002073,2]
[378539853,1754908248399,-460.0,0.0002073,2]
[378539854,1754908248409,-1777.53,0.0002073,2]
[378539855,1754908248418,-460.0,0.0002073,2]
[378539856,1754908248427,-563.56,0.0002073,2]
[378539857,1754908248437,-460.0,0.0002073,2]
[378539858,1754908248446,-460.0,0.0002073,2]
[378539859,1754908248455,-225.11203712,0.0002073,2]
[378539860,1754908248464,-460.0,0.0002073,2]
[378539861,1754908248474,-469.26,0.0002073,2]
[378539862,1754908248483,-460.0,0.0002073,2]
[378539863,1754908248493,-1144.23,0.0002073,2]
[378539864,1754908248502,-460.0,0.0002073,2]
[378539865,1754908248512,-460.0,0.0002073,2]
[378539866,1754908248522,-460.0,0.0002073,2]
[378539867,1754908248531,-460.0,0.0002073,2]
[378539868,1754908248540,-460.0,0.0002073,2]
[378539869,1754908248550,-460.0,0.0002073,2]
[378539870,1754908248559,-460.0,0.0002073,2]
[378539871,1754908248568,-460.0,0.0002073,2]
[378539872,1754908248578,-460.0,0.0002073,2]
[378539873,1754908248587,-690.0,0.0002073,2]
[378539874,1754908248596,-460.0,0.0002073,2]
[378539875,1754908248606,-460.0,0.0002073,2]
[378539876,1754908248616,-460.0,0.0002073,2]
[378539877,1754908248625,-460.0,0.0002073,2]
[378539878,1754908248635,-463.68,0.0002073,2]
[378539879,1754908248644,-960.43,0.0002073,2]
[378539880,1754908248654,-322.29616032,0.0002073,7]
[378539881,1754908248663,-460.0,0.0002073,2]
[378539882,1754908248673,-460.0,0.0002073,2]
[378539883,1754908248685,-460.0,0.0002073,2]
[378539884,1754908248694,-460.0,0.0002073,2]
[378539885,1754908248703,-460.0,0.0002073,2]
[378539886,1754908248714,-460.0,0.0002073,2]
[378539887,1754908248723,-300.0,0.0002073,2]
[378539888,1754908248733,-460.0,0.0002073,2]
[378539889,1754908248743,-460.0,0.0002073,2]
[378539890,1754908248754,-462.59665446,0.0002073,2]
[378539891,1754908248764,-460.0,0.0002073,2]
[378539892,1754908248773,-460.0,0.0002073,2]
[378539893,1754908248782,-460.0,0.0002073,2]
[378539894,1754908248792,-460.0,0.0002073,2]
[378539895,1754908248802,-616.43,0.0002073,2]
[378539896,1754908248811,-460.0,0.0002073,2]
[378539897,1754908248821,-460.0,0.0002073,2]
[378539898,1754908248831,-460.0,0.0002073,2]
[378539899,1754908248841,-460.0,0.0002073,2]
[378539900,1754908248851,-460.0,0.0002073,2]
[378539901,1754908248861,-599.29,0.0002073,2]
[378539902,1754908248871,-460.0,0.0002073,2]
[378539903,1754908248881,-460.0,0.0002073,2]
[378539904,1754908248890,-538.36,0.0002073,2]
[378539905,1754908248900,-539.26,0.0002073,2]
[378539906,1754908248910,-460.0,0.0002073,2]
[378539907,1754908248920,-460.0,0.0002073,2]
[378539908,1754908248930,-733.31,0.0002073,2]
[378539909,1754908248940,-442.65056221,0.00020734,2]
[378539910,1754908248951,-518.47,0.00020734,2]
[378539911,1754908248961,-460.0,0.00020734,2]
[378539912,1754908248971,-5889.12,0.00020734,2]
[378539913,1754908248982,-494.5,0.00020734,2]
[378539914,1754908248992,-518.16,0.00020734,2]
[378539915,1754908249001,-2433.67,0.00020735,2]
[378539916,1754908249011,-1951.94,0.00020735,2]
[378539917,1754908249022,-1044.87,0.00020735,2]
[378539918,1754908249032,-460.0,0.00020735,2]
[378539919,1754908249042,-1095.54,0.00020735,2]
[378539920,1754908249051,-460.0,0.00020735,2]
[378539921,1754908249061,-2948.92,0.00020735,2]
[378539922,1754908249071,-460.0,0.00020735,2]
[378539923,1754908249081,-2846.54306434,0.00020736,2]
[378539924,1754908249091,-500.0,0.00020738,2]
[378539925,1754908249101,-150.0,0.00020741,2]
[378539926,1754908249111,-460.0,0.00020741,2]
[378539927,1754908249121,-863.42,0.00020741,2]
[378539928,1754908249130,-460.0,0.00020741,2]
[378539929,1754908249140,-460.0,0.00020741,2]
[378539930,1754908249150,-500.0,0.00020741,2]
[378539931,1754908249161,-500.0,0.00020741,2]
[378539932,1754908249170,-460.0,0.00020741,2]
[378539933,1754908249181,-460.0,0.00020741,2]
[378539934,1754908249191,-460.0,0.00020741,2]
[378539935,1754908249204,-460.0,0.00020741,2]
[378539936,1754908249214,-460.0,0.00020741,2]
[378539937,1754908249224,-576.35,0.00020741,2]
[378539938,1754908249233,-460.0,0.00020741,2]
[378539939,1754908249243,-460.0,0.00020741,2]
[378539940,1754908249253,-460.0,0.00020741,2]
[378539941,1754908249263,-1280.16,0.00020741,2]
[378539942,1754908249272,-460.0,0.00020741,2]
[378539943,1754908249282,-460.0,0.00020741,2]
[378539944,1754908249291,-460.0,0.00020741,2]
[378539945,1754908249300,-460.0,0.00020741,2]
[378539946,1754908249310,-686.08,0.00020741,2]
[378539947,1754908249322,-920.27253676,0.00020741,2]
[378539948,1754908249331,-8024.33,0.00020741,2]
[378539949,1754908249340,-2264.28,0.00020741,2]
[378539950,1754908249350,-500.0,0.00020742,2]
[378539951,1754908249359,-500.0,0.00020742,2]
[378539952,1754908249369,-3610.17,0.00020742,2]
[378539953,1754908249378,-6406.99,0.00020742,2]
[378539954,1754908249388,-460.0,0.00020742,2]
[378539955,1754908249398,-579.92,0.00020742,2]
[378539956,1754908249408,-798.23,0.00020764,2]
[378539957,1754908249417,-460.0,0.00020764,2]
[378539958,1754908249426,-460.0,0.00020764,2]
[378539959,1754908249436,-460.0,0.00020764,2]
[378539960,1754908249445,-460.0,0.00020764,2]
[378539961,1754908249457,-460.0,0.00020764,2]
[378539962,1754908249467,-460.0,0.00020764,2]
[378539963,1754908249476,-460.0,0.00020764,2]
[378539964,1754908249485,-460.0,0.00020764,2]
[378539965,1754908249494,-460.0,0.00020764,2]
[378539966,1754908249503,-460.0,0.00020764,2]
[378539967,1754908249512,-460.0,0.00020764,2]
[378539968,1754908249521,-460.0,0.00020764,2]
[378539969,1754908249530,-3081.39,0.00020764,2]
[378539970,1754908249540,-6406.99,0.00020772,2]
[378539971,1754908249549,-387.33164504,0.00020773,2]
[378539972,1754908249558,-158.46371259,0.00020773,2]
[378539973,1754908249567,-500.0,0.00020773,2]
[378539974,1754908249577,-188.47570756,0.00020773,2]
[378539975,1754908249587,-157.96167722,0.00020773,2]
[378539976,1754908249596,-165.05050708,0.00020773,2]
[378539977,1754908249605,-500.0,0.00020773,2]
[378539978,1754908249615,-500.0,0.00020773,2]
[378539979,1754908249624,-158.46341349,0.00020773,2]
[378539980,1754908249633,-158.46401038,0.00020773,2]
[378539981,1754908249643,-500.0,0.00020773,2]
[378539982,1754908249652,-258.42704119,0.00020773,2]
[378539983,1754908249662,-160.17133691,0.00020773,2]
[378539984,1754908249683,-158.4649633,0.00020773,2]
[378539985,1754908249694,-158.46471794,0.00020773,2]
[378539986,1754908249706,-160.46559195,0.00020773,2]
[378539987,1754908249716,-158.46621791,0.00020773,2]
[378539988,1754908249726,-160.06680905,0.00020773,2]
[378539989,1754908249735,-185.25659566,0.00020773,2]
[378539990,1754908249745,-160.06669641,0.00020773,2]
[378539991,1754908249754,-157.46260862,0.00020773,2]
[378539992,1754908249764,-158.04855828,0.00020773,2]
[378539993,1754908249774,-158.04855828,0.00020773,2]
[378539994,1754908249784,-158.04855829,0.00020773,2]
[378539995,1754908249793,-159.45114521,0.00020773,2]
[378539996,1754908249803,-500.0,0.00020773,2]
[378539997,1754908249812,-500.0,0.00020773,2]
[378539998,1754908249822,-341.62190171,0.00020773,2]
[378539999,1754908249831,-340.52011149,0.00020773,2]
[378540000,1754908249841,-160.06638324,0.00020773,2]
[378540001,1754908249850,-160.06066016,0.00020773,2]
[378540002,1754908249860,-500.0,0.00020773,2]
[378540003,1754908249870,-500.0,0.00020773,2]
[378540004,1754908249879,-186.21622893,0.00020773,2]
[378540005,1754908249888,-160.04889471,0.00020773,2]
[378540006,1754908249898,-500.0,0.00020773,2]
[378540007,1754908249908,-158.46166641,0.00020773,2]
[378540008,1754908249920,-500.0,0.00020773,2]
[378540009,1754908249930,-203.58854369,0.00020773,2]
[378540010,1754908249940,-500.0,0.00020773,2]
[378540011,1754908249952,-500.0,0.00020773,2]
[378540012,1754908249962,-500.0,0.00020773,2]
[378540013,1754908249971,-445.11431374,0.00020773,2]
[378540014,1754908249982,-173.54530953,0.00020773,2]
[378540015,1754908249992,-500.0,0.00020773,2]
[378540016,1754908250002,-505.80135323,0.00020773,2]
[378540017,1754908250012,-500.0,0.00020773,2]
[378540018,1754908250022,-500.0,0.00020773,2]
[378540019,1754908250032,-158.7591481,0.00020773,2]
[378540020,1754908250041,-500.0,0.00020773,2]
[378540021,1754908250051,-500.0,0.00020773,2]
[378540022,1754908250062,-500.0,0.00020773,2]
[378540023,1754908250074,-500.0,0.00020773,2]
[378540024,1754908250084,-168.72970159,0.00020773,2]
[378540025,1754908250094,-500.0,0.00020773,2]
[378540026,1754908250103,-649.78876618,0.00020773,2]
[378540027,1754908250113,-500.0,0.00020773,2]
[378540028,1754908250122,-500.0,0.00020773,2]
[378540029,1754908250132,-500.0,0.00020773,2]
[378540030,1754908250141,-500.0,0.00020773,2]
[378540031,1754908250151,-500.0,0.00020773,2]
[378540032,1754908250161,-500.0,0.00020773,2]
[378540033,1754908250170,-500.0,0.00020773,2]
[378540034,1754908250180,-500.0,0.00020773,2]
[378540035,1754908250189,-500.0,0.00020773,2]
[378540036,1754908250201,-500.0,0.00020773,2]
[378540037,1754908250210,-621.55254894,0.00020773,2]
[378540038,1754908250216,-500.0,0.00020773,2]
[378540039,1754908250224,-2635.15381342,0.00020796,2]
[378540040,1754908250231,-2846.54306434,0.00020805,2]
[378540041,1754908250238,-460.0,0.00020817,2]
[378540042,1754908250426,-460.0,0.00020817,2]
[378540043,1754908250436,-460.0,0.00020817,2]
[378540044,1754908250446,-697.35,0.00020817,2]
[378540045,1754908250457,-1836.41,0.00020817,2]